Cogmind - Beta 16 *** ADVENTURER MODE // 2025.12.06 @ 12:53:55 Player: Joe Result: Destroyed by PA-XT8(R) with Subdweller Shrapnel Launcher Performance ------------- Evolutions (0) 0 Regions Visited (3) 600 Robots Destroyed (20) 100 Value Destroyed (505) 505 Prototype IDs (3) 60 Alien Tech Used (0) 0 Bonus (0) 0 TOTAL SCORE: 1265 Bonus ------- None Cogmind --------- Core Integrity 0/250 Matter 293/300 Energy 124/125 System Corruption 1% Temperature Cool (0) Movement Walking (260) Ox2 Location -10/Subcaves Parts ------- > --- POWER (1) -------- Light Ion Engine > --- PROPULSION (2) --- Aluminum Leg > --- UTILITY (2) ------ Large Storage Unit Terrain Scanner > --- WEAPON (2) ------- Light Assault Rifle > --- INVENTORY (15) --- Light Ion Engine Aluminum Leg Aluminum Leg Disposable Heat Sink EM Pulse Gun EM Pulse Gun Heavy EM Pulse Gun Light Assault Rifle EMP Blaster Grenade Launcher Peak State ------------ > --- POWER ------------ Light Nuclear Core > --- PROPULSION ------- Aluminum Leg Aluminum Leg > --- UTILITY ---------- Large Storage Unit Terrain Scanner > --- WEAPON ----------- Light Assault Rifle Rocket Launcher > --- INVENTORY -------- Light Ion Engine Light Ion Engine Aluminum Leg Aluminum Leg EM Pulse Gun Heavy EM Pulse Gun Light Assault Rifle Light Assault Rifle EMP Blaster Grenade Launcher [Rating: 11] Favorites ----------- Power Light Ion Engine Engine Light Ion Engine Power Core Light Nuclear Core Propulsion Aluminum Leg Treads Light Treads Leg Aluminum Leg Utility Terrain Scanner Device Terrain Scanner Storage Large Storage Unit Weapon Light Assault Rifle Ballistic Gun Light Assault Rifle Launcher Rocket Launcher Build | -11 -10 -10 -10 ------- Run | Yrd Mat Min Sub Slots Evolved . | . . . . Power . | . . . . Propulsion . | . . . . Utility . | . . . . Weapon . | . . . . Parts Attached 22 | 7 4 10 1 Power 5 | 1 2 2 . Engine 4 | 1 2 1 . Core 1 | . . 1 . Reactor . | . . . . Propulsion 6 | 3 . 3 . Treads 1 | 1 . . . Leg 5 | 2 . 3 . Wheel . | . . . . Hover . | . . . . Flight . | . . . . Utility 5 | 1 2 2 . Device 1 | . 1 . . Storage 4 | 1 1 2 . Processor . | . . . . Hackware . | . . . . Protection . | . . . . Artifact . | . . . . Weapon 6 | 2 . 3 1 Energy Gun . | . . . . Energy Cannon . | . . . . Ballistic Gun 5 | 2 . 2 1 Ballistic Cannon . | . . . . Launcher 1 | . . 1 . Special Weapon . | . . . . Impact Weapon . | . . . . Slashing Weapon . | . . . . Piercing Weapon . | . . . . Special Melee Weapon . | . . . . Unidentified Prototypes . | . . . . Parts Lost 6 | . . 1 5 Power 1 | . . . 1 Propulsion 1 | . . . 1 Utility . | . . . . Weapon 4 | . . 1 3 Highest Loss Streak 3 | . . 1 3 To Critical Strikes . | . . . . Average Backups 9 | 1 4 10 10 Power 1 | . 1 2 1 Propulsion 2 | . . 2 2 Utility . | . . . . Weapon 5 | . 3 5 6 Tool/Special . | . . . . Unused Backups 8 | . 1 1 6 Power . | . . . . Propulsion 1 | . . 1 . Utility 2 | . 1 . 1 Weapon 5 | . . . 5 Tool/Special . | . . . . Average Slot Usage (%) 98 | . 94 99 98 Engine 11 | . 14 10 9 Core 2 | . . 3 4 Leg 28 | . 28 28 28 Device 13 | . 8 14 14 Storage 14 | . 14 14 14 Ballistic Gun 26 | . 28 27 17 Launcher 1 | . . . 9 Peak Build Rating 11 | 6 8 10 11 Average Rating 8 | 4 6 8 9 On Entrance 6 | . 6 8 10 Avg Prop Armor Cover (%) . | . . . . Naked Turns . | . . . . Heaviest Build 86 | 10 16 86 29 Greatest Support 20 | 20 20 20 20 Greatest Overweight (x) 4 | . . 4 1 Average Overweight (x) . | . . . 1 Largest Inventory Capacity 25 | 8 10 25 15 Average Capacity 13 | 7 9 14 15 Most Carried 14 | 3 9 14 11 Average Carried 9 | 1 4 10 10 Final Capacity 15 | 8 10 15 15 Final Carried 11 | 1 9 11 10 Class Distribution -------------------- 69% | Mutant 30% | Scavenger-Mutant Dominant Class ---------------- Mutant | -10/Materials Mutant | -10/Mines Scavenger-Mutant | -10/Subcaves Resources | -11 -10 -10 -10 ----------- Run | Yrd Mat Min Sub Matter Collected 645 | 268 90 215 72 Remotely . | . . . . Salvage Created 525 | . 170 254 101 Parts 37 | . 15 18 4 Haulers Intercepted . | . . . . Recyclers Shooed . | . . . . Parts Field Recycled . | . . . . Retrieved Matter . | . . . . Parts Self-Destructed 3 | . . . 3 Prevented . | . . . . Parts Restored . | . . . . Kills | -11 -10 -10 -10 ------- Run | Yrd Mat Min Sub Combat Hostiles Destroyed 20 | . 7 10 3 Guns 15 | . 7 6 2 AOE 5 | . . 4 1 Classes Destroyed 5 | . 2 2 1 Tunneler 1 | . . 1 . Swarmer 8 | . 5 3 . Grunt 8 | . 2 6 . Subdweller 3 | . . . 3 Assembled 1 | . . 1 . Best Kill Streak 5 | . 5 5 2 Combat Bots Only 5 | . 5 4 2 Max Kills in Single Turn 3 | . 1 3 1 Gunslinging . | . . . . Exploded 2 | . . 2 1 Melee . | . . . . Uniques/NPCs Destroyed . | . . . . Combat | -11 -10 -10 -10 -------- Run | Yrd Mat Min Sub Hostile Shots Fired 130 | . 62 42 26 Missed 43 | . 22 16 5 Hits 87 | . 40 26 21 Projectile 87 | . 40 26 21 AOE 2 | . . . 2 Critical Strikes 1 | . . . 1 Damage Taken 973 | . 264 302 407 Core 263 | . 92 61 110 Absorbed by Shields . | . . . . Ignored by Resistances 291 | . 86 90 115 Core Remaining (%) 100 | 100 . . . Volleys Fired 71 | . 24 26 21 Largest 2 | . 2 2 2 Hottest 53 | . 40 53 53 Shots Fired 128 | . 48 50 30 Gun 121 | . 48 46 27 Cannon . | . . . . Launcher 7 | . . 4 3 Special . | . . . . Kinetic 121 | . 48 46 27 Thermal . | . . . . Explosive 7 | . . 4 3 Electromagnetic . | . . . . Robot Hit Streak 19 | . 13 19 14 Robot Miss Streak 2 | . 2 2 1 Penetration Max . | . . . . Secondary Targets 6 | . 4 2 . Max Gunslinging Chain 1 | . 1 1 . Shots Hit Robots 99 | . 33 40 26 Core Hits 43 | . 14 20 9 Critical Kills . | . . . . Critical Parts Destroyed 1 | . 1 . . Critical Strikes 1 | . 1 . . Destroy 1 | . 1 . . Melee Attacks . | . . . . Impact . | . . . . Slashing . | . . . . Piercing . | . . . . Sneak Attacks . | . . . . Combat Hostiles . | . . . . Follow-up Attacks . | . . . . Damage Inflicted 1355 | . 273 739 343 Guns 775 | . 273 299 203 Cannons . | . . . . Explosions 555 | . . 415 140 Melee . | . . . . Ramming 25 | . . 25 . Kinetic 775 | . 273 299 203 Thermal . | . . . . Explosive 555 | . . 415 140 Electromagnetic . | . . . . Impact . | . . . . Slashing . | . . . . Piercing . | . . . . Highest Corruption 1 | . 1 1 1 Average Corruption 1 | . 1 1 1 Corruption Purged . | . . . . Corruption Blocked . | . . . . Effects 12 | . 2 8 2 Message Errors 4 | . 1 2 1 Matter Fused 5 | . . 4 1 Heat Flow Errors 1 | . . 1 . Energy Discharges 1 | . 1 . . Data Loss (minor) 1 | . . 1 . Overload Shots . | . . . . Overflow Damage 28 | . . 15 13 Projectiles . | . . . . Explosions 28 | . . 15 13 Melee . | . . . . Knockbacks . | . . . . Impact . | . . . . Kinetic . | . . . . Secondary . | . . . . Self-Inflicted Damage 79 | . . 60 19 Shots 4 | . . 3 1 Rammed . | . . . . Targets Rammed 6 | . . 6 . Kicked 6 | . . 6 . Crushed . | . . . . Highest Temperature 276 | . 15 276 . Average Temperature 48 | . 9 54 . Received Heat Transfer 267 | . 39 150 78 Effects 1 | . . 1 . Energy Bleed 1 | . . 1 . Siege Activations . | . . . . Martial Activations . | . . . . Shielding Activations . | . . . . Robots Disrupted . | . . . . Combat Hostiles . | . . . . Robots Corrupted . | . . . . Combat Hostiles . | . . . . Parts Fried . | . . . . Impact Corruptions . | . . . . Robots Melted . | . . . . Combat Hostiles . | . . . . Parts Melted . | . . . . Heat Transferred . | . . . . Parts Sabotaged . | . . . . Parts Stolen . | . . . . Parts Stripped . | . . . . Power Chain Reactions . | . . . . Alert | -11 -10 -10 -10 ------- Run | Yrd Mat Min Sub Maximum Alert Level . | . . . . Low Security (%) 100 | 100 100 100 . Level 1 . | . . . . Level 2 . | . . . . Level 3 . | . . . . Level 4 . | . . . . Level 5 . | . . . . High Security . | . . . . Max Security . | . . . . Peak Influence 102 | . 100 102 . Initial 13 | . . 13 . Average 19 | . 47 14 . Influence Increases 421 | . 192 229 . Destroy 0b10 Robot/C 320 | . 140 180 . Destroy 0b10 Robot/NC 5 | . . 5 . Destroy Leader 50 | . 30 20 . Successful Hack 22 | . 22 . . Destroy Structure 24 | . . 24 . Influence Decreases 421 | . 150 271 . Entered New Map 29 | . . 29 . Time Decay 382 | . 150 232 . Lost Part 10 | . . 10 . Squads Dispatched 1 | . 1 . . Investigation 1 | . 1 . . Extermination . | . . . . Reinforcement . | . . . . Assault . | . . . . Garrison . | . . . . Intercept . | . . . . Searches Triggered . | . . . . Construction Impeded . | . . . . Haulers Reinforced . | . . . . Active Scanning Responses . | . . . . Cargo Convoy Interrupts . | . . . . Stealth | -11 -10 -10 -10 --------- Run | Yrd Mat Min Sub Distress Signals 1 | . . 1 . Communications Jammed . | . . . . Distress Signals . | . . . . Times Spotted 25 | . 11 10 4 Peak Tracking Total 5 | . 5 3 2 Tactical Retreats . | . . . . Traps | -11 -10 -10 -10 ------- Run | Yrd Mat Min Sub Traps Triggered . | . . . . Indirectly . | . . . . Trap Hack Attempts . | . . . . Triggered . | . . . . Disarmed . | . . . . Reprogrammed . | . . . . Reused . | . . . . Traps Extracted . | . . . . Installed . | . . . . Triggered . | . . . . Machines | -11 -10 -10 -10 ---------- Run | Yrd Mat Min Sub Machines Disabled . | . . . . Max in Single Turn . | . . . . Machines Repaired . | . . . . Machines Dismantled . | . . . . Machines Sabotaged . | . . . . Overloaded Fab Kills . | . . . . Hacking | -11 -10 -10 -10 --------- Run | Yrd Mat Min Sub Machines Accessed 3 | . 3 . . Terminals 3 | . 3 . . Fabricators . | . . . . Repair Stations . | . . . . Recycling Units . | . . . . Scanalyzers . | . . . . Garrison Access . | . . . . Total Hacks 20 | . 20 . . Successful 13 | . 13 . . Failed 7 | . 7 . . Catastrophic 1 | . 1 . . Database Lockouts . | . . . . Manual . | . . . . Terminals 20 | . 20 . . Fabricators . | . . . . Repair Stations . | . . . . Recycling Units . | . . . . Scanalyzers . | . . . . Garrison Access . | . . . . Terminal Hacks 13 | . 13 . . Record 3 | . 3 . . Robot Analysis 1 | . 1 . . Prototype ID Bank 2 | . 2 . . Alert Level 3 | . 3 . . Hauler Manifests 1 | . 1 . . Registered Components 1 | . 1 . . Registered Prototypes 1 | . 1 . . Zone Layout 1 | . 1 . . Fabricator Hacks . | . . . . Repair Station Hacks . | . . . . Recycling Unit Hacks . | . . . . Scanalyzer . | . . . . Garrison Access Hacks . | . . . . Unauthorized Hacks . | . . . . Terminals . | . . . . Fabricators . | . . . . Repair Stations . | . . . . Recycling Units . | . . . . Scanalyzers . | . . . . Garrison Access . | . . . . Data Cores Recovered . | . . . . Used . | . . . . Hacking Detections 3 | . 3 . . Full Trace Events 1 | . 1 . . Feedback Events 1 | . 1 . . Corruption 1 | . 1 . . Feedback Blocked . | . . . . Robot Schematics Acquired . | . . . . Robots Built . | . . . . Authchips . | . . . . Time . | . . . . Total Robot Build Rating . | . . . . Part Schematics Acquired . | . . . . Parts Built . | . . . . Authchips . | . . . . Time . | . . . . Total Part Build Rating . | . . . . Part Studies Acquired . | . . . . Parts Repaired . | . . . . Time . | . . . . Parts Recycled . | . . . . Recycled Matter . | . . . . Retrieved Matter . | . . . . Retrieved Components . | . . . . Parts Scanalyzed . | . . . . Part Schematics Acquired . | . . . . Parts Damaged . | . . . . Bothacking | -11 -10 -10 -10 ------------ Run | Yrd Mat Min Sub Used RIF Installer . | . . . . Robots Hacked . | . . . . Non-combat . | . . . . Combat . | . . . . Robot Hacks Applied . | . . . . Relay Couplers Released . | . . . . Fabnet Peak Effective % . | . . . . Robots Rewired . | . . . . Allies Hacked . | . . . . Hacks Repelled . | . . . . Allies | -11 -10 -10 -10 -------- Run | Yrd Mat Min Sub Total Allies . | . . . . Largest Group . | . . . . Highest-Rated Group . | . . . . Highest-Rated Ally . | . . . . Total Orders . | . . . . Ally Attacks . | . . . . Total Damage . | . . . . Kills . | . . . . Allies Corrupted . | . . . . Allies Melted . | . . . . Intel | -11 -10 -10 -10 ------- Run | Yrd Mat Min Sub Active Infowar (turns) 2182 | . 227 1589 366 Terrain 2182 | . 227 1589 366 Robot Analysis Total 1 | . 1 . . Derelict Logs Recovered 1 | . . 1 . Drone Launches . | . . . . Drone Recoveries . | . . . . Exploration | -11 -10 -10 -10 ------------- Run | Yrd Mat Min Sub Turns Passed 2378 | 70 353 1589 366 Spaces Moved 1278 | 48 227 836 167 Core 9 | 9 . . . Treads 11 | 11 . . . Legs 1258 | 28 227 836 167 Wheels . | . . . . Hover . | . . . . Flight . | . . . . Fastest Speed 50 | 50 120 120 190 Average Speed 162 | 116 120 170 190 Slowest Speed 400 | 160 120 400 190 Overloaded Moves . | . . . . Propulsion Burnouts . | . . . . Robots Hopped . | . . . . Potential Cave-ins . | . . . . Cave-ins Triggered . | . . . . Exploration Rate (%) 38 | 4 39 99 10 Regions Visited 3 Branch Regions 2 Pre-discovered Areas 1 | . . 1 . Known Exits Taken . | . . . . Unknown Exits Taken 3 | 1 1 1 . Scrap Searched 3 | . . 3 . Spaces Dug . | . . . . Terrain Destroyed 70 | . . 32 38 Melee . | . . . . Projectile . | . . . . AOE 70 | . . 32 38 Terrain Rammed . | . . . . Walls Destroyed . | . . . . Machines Disabled . | . . . . Actions | -11 -10 -10 -10 --------- Run | Yrd Mat Min Sub Total 1474 | 63 269 949 193 Wait 58 | . . 58 . Move 1275 | 47 226 835 167 Hop . | . . . . Pick Up 30 | 8 12 8 2 Fast Attach . | . . . . Attach 13 | 7 2 1 3 Detach . | . . . . Swap 12 | . 2 10 . Drop 9 | 1 3 5 . Fire 71 | . 24 26 21 Melee . | . . . . Ram . | . . . . Kick 6 | . . 6 . Crush . | . . . . Escape Stasis . | . . . . Rewire . | . . . . Trap . | . . . . Miscellaneous . | . . . . Route ------- -11/Scrapyard -10/Materials -10/Mines (discovered 3 exits: [*Mat x2] / [*Sub]) -10/Subcaves History --------- Turn | Location | Event 19 | -11/Scrapyard | Discovered new exit (range 14) 71 | -11/Scrapyard | Entered Materials 328 | -10/Materials | Build established: Mutant 382 | -10/Materials | Discovered new exit (range 7) 424 | -10/Materials | Entered Mines 425 | -10/Mines | Learned location of Storage (-7) 480 | -10/Mines | Core integrity fell below 50% 541 | -10/Mines | Discovered new exit (range 9) 1063 | -10/Mines | Received a Rocket Launcher from a helpful Derelict 1259 | -10/Mines | Discovered new exit (range 8) 1356 | -10/Mines | Discovered new exit (range 8) 1415 | -10/Mines | Excavation squad dispatched 1415 | -10/Mines | A large section of the Mines collapsed 1954 | -10/Mines | Build established: Scavenger-Mutant 2013 | -10/Mines | Entered Subcaves 2114 | -10/Subcaves | Ambushed by Subdweller buried in earth 2150 | -10/Subcaves | A swath of the cavern ceiling suddenly collapsed 2153 | -10/Subcaves | Lost 3 parts (1p2w) 2378 | -10/Subcaves | Disturbed a concealed Subdweller 2379 | -10/Subcaves | Core integrity fell below 20% 2379 | -10/Subcaves | Destroyed by PA-XT8(R) with Subdweller Shrapnel Launcher Last Messages --------------- A swath of the cavern ceiling suddenly collapses. 02150_ Acquired 51 matter. 02153_ Subatomizers dissect the Disposable Heat Sink. 02154_ The unstable cave ceiling collapses. 02166_ Acquired EM Pulse Gun. 02174_ Acquired Disposable Heat Sink. 02177_ Subatomizers dissect the Sub. Optics. 02185_ Acquired 10 matter. 02190_ Subatomizers dissect the Sub. Optics. 02199_ System corrupted: Matter fused (-9). 02200_ Subatomizers dissect the Sub. Optics. 02202_ The unstable cave ceiling collapses. 02348_ Acquired 11 matter. 02378_ PA-XT8(R) angrily emerges from the Twisted Machinery. 02378_ Aluminum Leg destroyed. 02379_ Rocket Launcher destroyed. 02379_ Destroyed Rocket Launcher. Map ----- +----------------------------------------------------+ | ?????????????????????????????????????????????????? | | ?????????????????????????????????????????????????? | | ?????????????????????????????????????????????????? | | ?????????????????????????????????????????????????? | | ?????????????????????????????????????????????????? | | ?????????????????????????????????????????????????? | | ?????????????????????????????????????????????????? | | ?????????????????????????????????????????????????? | | ?????????????????????????????????????????????????? | | ?????????????????????????????? #????#????????????? | | ??????????????????????????? % #??? ???????????? | | ????????????????????????? ### ???????????? | | ??????????????????????? % ???????????? | | ??????????????????????? ????????????? | | ?????????????????????? ????????????? | | ???????????????????????# ?????????? ?? | | ?????????????????? ?????# #????????????? | | ???????????????????????## % #???????? ???? | | ??????????????????????## #????????????? | | ???????????????????????# #????#???????? | | ????????????????????????# #????#????????? | | ??????????????????????#### %% ##????#??????#? | | ?????????????????# ???# ; ##???????????? | | ?????????????????# $## ## % #?#?????????# | | ?????????????????# ## #???????????? | | ??????????????????# R @;; #???????##### | | ??????????????????#$& ;; ####??### ## | | ??????????????????# $ ; #### | | ??????????????????# # ; | | ??????????????????##?## ##; ### ### | | ??????????????????????##??## #?## #? | | ??????????????????????#????# ##??# ## ### | | ???????????????????????????#####???# #### #?? | | ???????????????????????##?#????????# ### ### | | ???????????????????????????????????## #?##""""" | | ???????????????#????????#?????#?????######??#"#" " | | ????????????????????????????????#???#?#?#???##"##" | | ???????????????????????????????????##????????###"" | | ???????????????????????????????????????##????### # | | ???????????????????????????????????????????#?#"" # | | ?????????????????????????????????????????????###"# | | ???????????????????????????????????????#???#???# # | | ??????????????????????????????????????????#????# # | | ???????????????????????????????????????#?????#?#"# | | ???????????????????????????????????????????#???# " | | ?????????????????????????????????????????###?###"# | | ???????????????????????????????????????#?# ####"" | | ?????????????????????????????????????????# #|#""!" | | ????????????????????????????????????????## #"""#" | | ????????????????????????????????????????# # #"### | +----------------------------------------------------+ Best States ------------- Heat Dissipation 25 Energy Generation 14 Energy Capacity 160 Matter Stores 300 Matter Capacity 300 Sight Range 16 Terrain Scan Range 14 Terrain Scan Density 10 Resistance: KI 20 Resistance: TH 20 Resistance: EX 20 Resistance: EM 20 Resistance: I 20 Resistance: S 20 Resistance: P 20 Evasion (%) 55 Recoil Reduction 1 Offensive Hacking 10 Item Schematics ----------------- None Robot Schematics ------------------ None Fabricated ------------ Nothing Repaired ---------- Nothing Studied --------- None Alien Tech Used ----------------- None Achievements -------------- None Challenges ------------ None Game ------ Seed ContainmentPlatingSheargun Manual? 0 Play Time 00:10:40 Cumulative 272.5 hours Start 2025.12.06 @ 12:44:28 End 2025.12.06 @ 12:53:55 Sessions 1 Manual Loads 0 Difficulty Adventurer Special Mode None Game No. 70 Rogue 0 Adventurer 70 Explorer 0 Win Type - Total 1 Types 0/0/0/1/0/0/0/0/0/0 Lore% 52 Gallery% 58 Achievement% 42 Wizard Run 0 Options --------- Layout 1 ASCII 0 Keyboard 0 Movement Numpad Keybinds 0 Fullscreen 1 Font 24/Smallcaps Map View 50x35 Zoom Use 0% Tactical HUD 1 Map Filters NONE Filters NONE Steam 0 RUN: 158db5b4-a47f-4bd4-b5fd-2efde92f61f1